[Event "44th Chess Olympiad Open 2022"]
[Site "Chennai"]
[Date "2022.08.07"]
[Round "9.59"]
[White "Hinga, Githinji"]
[Black "Ajak Mach Duany"]
[Result "0-1"]
[WhiteElo "1954"]
[BlackElo "2029"]
[Annotator "NA RC"]
[PlyCount "40"]
[EventDate "2022.??.??"]
[TimeControl "60"]

1. e4 {[%emt 0:00:05]} c6 {[%emt 0:01:27]} 2. d4 {[%emt 0:02:12]} d5 {[%emt 0:
00:00]} 3. Nc3 {[%emt 0:02:13]} dxe4 {[%emt 0:01:00]} 4. Nxe4 {[%emt 0:00:19]}
Bf5 {[%emt 0:04:35]} 5. Ng3 {[%emt 0:00:38]} Bg6 {[%emt 0:00:11]} 6. Nf3 {
[%emt 0:00:43]} e6 {[%emt 0:00:14]} 7. Bc4 {[%emt 0:10:46]} Bd6 {[%emt 0:02:26]
} 8. c3 {[%emt 0:00:43]} Ne7 {[%emt 0:02:04]} 9. O-O {[%emt 0:01:41]} Nd7 {
[%emt 0:03:50]} 10. Re1 {[%emt 0:00:35]} Qc7 {[%emt 0:00:20]} 11. Bg5 {[%emt 0:
00:00]} h6 {[%emt 0:07:04]} 12. Bxe7 {[%emt 0:01:18]} Bxe7 {[%emt 0:00:09]} 13.
Qe2 {[%emt 0:02:14]} O-O-O {[%emt 0:00:38]} 14. Bxe6 {[%emt 0:01:55]} fxe6 {
[%emt 0:00:47]} 15. Qxe6 {[%emt 0:00:22]} Bf6 {[%emt 0:00:28]} 16. Ne5 {
[%emt 0:03:08]} Bh7 {[%emt 0:05:21]} 17. Nf7 {[%emt 0:03:57]} Bg8 {[%emt 0:00:
00]} 18. Ne4 {[%emt 0:02:17]} Kb8 {[%emt 0:04:14]} 19. Ned6 {[%emt 0:03:13]}
Nb6 {[%emt 0:06:04]} 20. a4 {[%emt 0:00:52]} Nc8 {[%emt 0:06:39]} 0-1

[Event "44th Chess Olympiad Open 2022"]
[Site "Chennai"]
[Date "2022.08.07"]
[Round "9.60"]
[White "Jimma, Desalegn Fekadu"]
[Black "Barcon, Harmon"]
[Result "0-1"]
[WhiteElo "2112"]
[BlackElo "1902"]
[Annotator "NA"]
[PlyCount "100"]
[EventDate "2022.??.??"]
[TimeControl "60"]

1. d4 {[%emt 0:00:02]} Nf6 {[%emt 0:00:07]} 2. c4 {[%emt 0:00:04]} e6 {[%emt 0:
00:00]} 3. Nc3 {[%emt 0:00:11]} d5 {[%emt 0:00:08]} 4. Nf3 {[%emt 0:00:16]} c6
{[%emt 0:00:11]} 5. e3 {[%emt 0:00:48]} Be7 {[%emt 0:00:13]} 6. Be2 {[%emt 0:
00:00]} Nbd7 {[%emt 0:00:24]} 7. O-O {[%emt 0:00:19]} O-O {[%emt 0:00:06]} 8.
Qc2 {[%emt 0:00:04]} Re8 {[%emt 0:01:23]} 9. e4 {[%emt 0:00:33]} dxe4 {[%emt 0:
00:00]} 10. Nxe4 {[%emt 0:00:04]} Nxe4 {[%emt 0:00:46]} 11. Qxe4 {[%emt 0:00:
00]} Nf6 {[%emt 0:00:12]} 12. Qc2 {[%emt 0:00:07]} Qc7 {[%emt 0:00:26]} 13. Bg5
{[%emt 0:02:00]} c5 {[%emt 0:03:07]} 14. Rfd1 {[%emt 0:04:07]} cxd4 {[%emt 0:
00:00]} 15. Nxd4 {[%emt 0:00:58]} Bd7 {[%emt 0:00:18]} 16. Rac1 {[%emt 0:02:38]
} a6 {[%emt 0:00:16]} 17. Bh4 {[%emt 0:12:30]} Rad8 {[%emt 0:06:11]} 18. Bg3 {
[%emt 0:02:42]} Qa5 {[%emt 0:02:19]} 19. Bf3 {[%emt 0:02:01]} e5 {[%emt 0:00:
00]} 20. Nb3 {[%emt 0:05:05]} Qc7 {[%emt 0:00:50]} 21. Re1 {[%emt 0:00:59]} Bb4
{[%emt 0:01:07]} 22. Re2 {[%emt 0:01:34]} g6 {[%emt 0:14:02]} 23. Re3 {[%emt 0:
00:00]} Ba4 {[%emt 0:02:36]} 24. Qe2 {[%emt 0:12:28]} Bxb3 {[%emt 0:00:30]} 25.
Rxb3 {[%emt 0:00:37]} Qa5 {[%emt 0:09:56]} 26. a3 {[%emt 0:05:13]} Bd2 {
[%emt 0:01:32]} 27. Rd1 {[%emt 0:07:14]} e4 {[%emt 0:00:26]} 28. Bg4 {[%emt 0:
00:00]} Nxg4 {[%emt 0:00:21]} 29. Qxg4 {[%emt 0:00:39]} f5 {[%emt 0:01:40]} 30.
Qe2 {[%emt 0:00:24]} f4 {[%emt 0:02:09]} 31. Bh4 {[%emt 0:03:39]} Rd7 {[%emt 0:
00:00]} 32. Bf6 {[%emt 0:16:16]} e3 {[%emt 0:06:45]} 33. fxe3 {[%emt 0:08:32]}
fxe3 {[%emt 0:06:37]} 34. Bh4 {[%emt 0:03:42]} Qc5 {[%emt 0:06:31]} 35. h3 {
[%emt 0:01:55]} Re4 {[%emt 0:02:38]} 36. Be1 {[%emt 0:04:48]} Qxc4 {[%emt 0:00:
00]} 37. Qxc4+ {[%emt 0:00:18]} Rxc4 {[%emt 0:00:09]} 38. Kf1 {[%emt 0:02:23]}
Rf7+ {[%emt 0:01:21]} 39. Ke2 {[%emt 0:00:09]} Bxe1 {[%emt 0:02:01]} 40. Rxe1 {
[%emt 0:00:02]} Rc2+ {[%emt 0:00:27]} 41. Kd3 {[%emt 0:30:25]} Rd2+ {[%emt 0:
00:00]} 42. Kxe3 {[%emt 0:01:06]} Rxg2 {[%emt 0:00:03]} 43. Kd4 {[%emt 0:00:18]
} Rg5 {[%emt 0:00:27]} 44. Re5 {[%emt 0:00:00]} Rd7+ {[%emt 0:00:00]} 45. Ke4 {
[%emt 0:00:00]} Rg1 {[%emt 0:00:00]} 46. Re3 {[%emt 0:00:00]} Rf1 {[%emt 0:00:
00]} 47. b4 {[%emt 0:00:00]} Kf7 {[%emt 0:00:00]} 48. Re2 {[%emt 0:00:00]} Kf6
{[%emt 0:00:00]} 49. Re3 {[%emt 0:00:00]} g5 {[%emt 0:00:00]} 50. Re8 {[%emt 0:
00:00]} Rf4# {[%emt 0:00:17]} 0-1

[Event "44th Chess Olympiad Open 2022"]
[Site "Chennai"]
[Date "2022.08.07"]
[Round "9.60"]
[White "Tsige, Addisalem Temesgen"]
[Black "Arnold Smith"]
[Result "1-0"]
[WhiteElo "2072"]
[BlackElo "1931"]
[Annotator "NA"]
[PlyCount "109"]
[EventDate "2022.??.??"]
[TimeControl "60"]

1. d4 {[%emt 0:00:04]} Nf6 {[%emt 0:00:26]} 2. Bf4 {[%emt 0:00:05]} d5 {
[%emt 0:00:56]} 3. e3 {[%emt 0:00:05]} Bf5 {[%emt 0:00:49]} 4. c4 {[%emt 0:00:
00]} e6 {[%emt 0:01:40]} 5. Qb3 {[%emt 0:01:21]} Qc8 {[%emt 0:04:28]} 6. Nc3 {
[%emt 0:00:13]} c6 {[%emt 0:00:15]} 7. Rc1 {[%emt 0:00:42]} Qd7 {[%emt 0:00:29]
} 8. Nf3 {[%emt 0:00:08]} b6 {[%emt 0:02:13]} 9. cxd5 {[%emt 0:00:14]} exd5 {
[%emt 0:00:14]} 10. Ne5 {[%emt 0:00:20]} Qe6 {[%emt 0:01:39]} 11. Be2 {[%emt 0:
00:00]} Bd6 {[%emt 0:01:16]} 12. Nb5 {[%emt 0:01:56]} Bxe5 {[%emt 0:07:39]} 13.
dxe5 {[%emt 0:00:50]} cxb5 {[%emt 0:00:18]} 14. exf6 {[%emt 0:00:27]} O-O {
[%emt 0:00:09]} 15. fxg7 {[%emt 0:00:34]} Kxg7 {[%emt 0:04:56]} 16. Bxb5 {
[%emt 0:00:28]} a6 {[%emt 0:13:18]} 17. Be2 {[%emt 0:02:42]} Nd7 {[%emt 0:00:
00]} 18. O-O {[%emt 0:02:26]} Nc5 {[%emt 0:04:27]} 19. Qc3+ {[%emt 0:03:04]}
Kg8 {[%emt 0:04:07]} 20. Rfd1 {[%emt 0:00:44]} a5 {[%emt 0:02:54]} 21. Qd4 {
[%emt 0:00:46]} Rfd8 {[%emt 0:05:01]} 22. Bg5 {[%emt 0:05:57]} Rd6 {[%emt 0:00:
00]} 23. Bc4 {[%emt 0:00:54]} dxc4 {[%emt 0:09:55]} 24. Qxd6 Nd3 {[%emt 0:00:
00]} 25. Qxe6 {[%emt 0:02:24]} Bxe6 {[%emt 0:00:05]} 26. Rc2 {[%emt 0:01:13]}
b5 {[%emt 0:00:27]} 27. Bf6 {[%emt 0:00:17]} h5 {[%emt 0:00:14]} 28. Rcd2 {
[%emt 0:01:13]} Ra6 {[%emt 0:03:23]} 29. Bc3 {[%emt 0:03:32]} a4 {[%emt 0:00:
00]} 30. a3 {[%emt 0:00:27]} Bf5 {[%emt 0:01:21]} 31. f3 {[%emt 0:00:30]} Rd6 {
[%emt 0:00:53]} 32. e4 {[%emt 0:00:24]} Be6 {[%emt 0:00:58]} 33. Kf1 {[%emt 0:
00:00]} Kh7 {[%emt 0:00:58]} 34. g3 {[%emt 0:00:45]} Bh3+ {[%emt 0:01:31]} 35.
Ke2 {[%emt 0:04:45]} Kg6 {[%emt 0:01:16]} 36. Ke3 {[%emt 0:00:24]} Be6 {
[%emt 0:03:07]} 37. f4 {[%emt 0:02:59]} Bg4 {[%emt 0:01:42]} 38. Rh1 {[%emt 0:
00:00]} Bh3 {[%emt 0:00:53]} 39. Rg1 {[%emt 0:03:42]} Bg4 {[%emt 0:03:06]} 40.
Rf1 {[%emt 0:00:28]} f6 {[%emt 0:02:15]} 41. e5 {[%emt 0:35:31]} Re6 {[%emt 0:
00:00]} 42. Kd4 {[%emt 0:00:27]} fxe5+ {[%emt 0:01:54]} 43. fxe5 {[%emt 0:00:
00]} Nxe5 {[%emt 0:02:29]} 44. Kc5 {[%emt 0:01:41]} Re8 {[%emt 0:00:00]} 45.
Rd6+ {[%emt 0:00:00]} Kh7 {[%emt 0:00:00]} 46. Kxb5 {[%emt 0:00:00]} Bh3 {
[%emt 0:00:00]} 47. Re1 {[%emt 0:00:00]} Rb8+ {[%emt 0:00:00]} 48. Kxa4 {
[%emt 0:00:00]} Nd3 {[%emt 0:00:00]} 49. Re7+ {[%emt 0:00:00]} Kg8 {[%emt 0:00:
00]} 50. Rg7+ {[%emt 0:00:00]} Kf8 {[%emt 0:00:00]} 51. Rh6 {[%emt 0:00:00]}
Nc5+ {[%emt 0:00:00]} 52. Ka5 {[%emt 0:00:00]} Nb3+ {[%emt 0:00:26]} 53. Ka6 {
[%emt 0:00:00]} Nc5+ {[%emt 0:03:44]} 54. Ka7 {[%emt 0:00:00]} Rb7+ {[%emt 0:
00:00]} 55. Rxb7 {[%emt 0:00:00]} 1-0

[Event "44th Chess Olympiad Open 2022"]
[Site "Chennai"]
[Date "2022.08.07"]
[Round "9.60"]
[White "Daniel Kolliemelen"]
[Black "Gole, Habtamu Ashenafi"]
[Result "0-1"]
[WhiteElo "1870"]
[BlackElo "2044"]
[Annotator "NA"]
[PlyCount "98"]
[EventDate "2022.??.??"]
[TimeControl "60"]

1. d4 {[%emt 0:01:06]} Nf6 {[%emt 0:00:07]} 2. f4 {[%emt 0:00:29]} d5 {[%emt 0:
00:00]} 3. e3 {[%emt 0:00:13]} e6 {[%emt 0:00:27]} 4. Bd3 {[%emt 0:00:29]} c5 {
[%emt 0:00:15]} 5. c3 {[%emt 0:00:40]} Nc6 {[%emt 0:00:12]} 6. Nd2 {[%emt 0:00:
00]} Be7 {[%emt 0:01:24]} 7. Ngf3 {[%emt 0:00:10]} O-O {[%emt 0:00:12]} 8. O-O
{[%emt 0:00:09]} Ne8 {[%emt 0:04:02]} 9. Ne5 {[%emt 0:08:52]} f5 {[%emt 0:00:
00]} 10. g4 {[%emt 0:05:25]} cxd4 {[%emt 0:00:42]} 11. cxd4 {[%emt 0:00:50]} g6
{[%emt 0:01:43]} 12. g5 {[%emt 0:03:03]} Nxe5 {[%emt 0:02:42]} 13. dxe5 {
[%emt 0:03:56]} Rf7 {[%emt 0:02:53]} 14. Nb3 {[%emt 0:01:13]} h6 {[%emt 0:00:
00]} 15. h4 {[%emt 0:00:09]} hxg5 {[%emt 0:00:17]} 16. hxg5 {[%emt 0:03:14]}
Rh7 {[%emt 0:02:10]} 17. Rf2 {[%emt 0:01:22]} Bd7 {[%emt 0:05:26]} 18. Rg2 {
[%emt 0:02:33]} Ng7 {[%emt 0:00:33]} 19. Bd2 {[%emt 0:02:18]} Kf7 {[%emt 0:00:
00]} 20. Qe2 {[%emt 0:01:45]} Bc6 {[%emt 0:02:33]} 21. Nd4 {[%emt 0:04:22]} Qb6
{[%emt 0:00:10]} 22. Bc3 {[%emt 0:00:29]} Rah8 {[%emt 0:02:44]} 23. Kf2 {
[%emt 0:00:44]} Rh4 {[%emt 0:01:54]} 24. Qd2 {[%emt 0:06:26]} a6 {[%emt 0:00:
00]} 25. Ba5 {[%emt 0:02:33]} Qa7 {[%emt 0:00:03]} 26. Be2 {[%emt 0:04:52]} Bc5
{[%emt 0:10:23]} 27. Bc3 {[%emt 0:00:35]} b5 {[%emt 0:04:59]} 28. Nxc6 {
[%emt 0:04:34]} Bxe3+ {[%emt 0:00:16]} 29. Qxe3 {[%emt 0:01:32]} Rxf4+ {
[%emt 0:00:08]} 30. Bf3 {[%emt 0:01:06]} Rxf3+ {[%emt 0:00:09]} 31. Kxf3 {
[%emt 0:06:41]} Rh3+ {[%emt 0:00:09]} 32. Rg3 {[%emt 0:01:10]} Rxg3+ {[%emt 0:
00:00]} 33. Kxg3 {[%emt 0:00:17]} Qxe3+ {[%emt 0:00:02]} 34. Kg2 {[%emt 0:00:
00]} Qe2+ {[%emt 0:01:41]} 35. Kg1 {[%emt 0:01:34]} f4 {[%emt 0:01:27]} 36. Rf1
{[%emt 0:02:58]} Qg4+ {[%emt 0:00:18]} 37. Kf2 {[%emt 0:01:09]} Nf5 {[%emt 0:
00:00]} 38. Ke1 {[%emt 0:14:39]} Ne3 {[%emt 0:02:29]} 39. Rxf4+ {[%emt 0:11:04]
} Qxf4 {[%emt 0:00:09]} 40. a3 {[%emt 0:03:39]} Qf1+ {[%emt 0:00:37]} 41. Kd2 {
[%emt 0:30:20]} Nc4+ {[%emt 0:31:13]} 42. Kc2 {[%emt 0:00:19]} Qe2+ {[%emt 0:
00:00]} 43. Kb3 {[%emt 0:00:00]} Nd2+ {[%emt 0:00:00]} 44. Kc2 {[%emt 0:00:00]}
Ne4+ {[%emt 0:00:00]} 45. Kc1 {[%emt 0:00:00]} Nxc3 {[%emt 0:00:00]} 46. bxc3 {
[%emt 0:00:00]} Qc4 {[%emt 0:00:00]} 47. Nd8+ {[%emt 0:00:00]} Ke7 {[%emt 0:00:
00]} 48. Nb7 {[%emt 0:00:00]} Qxc3+ {[%emt 0:00:00]} 49. Kd1 {[%emt 0:00:00]}
Qxe5 {[%emt 0:00:00]} 0-1

[Event "44th Chess Olympiad Open 2022"]
[Site "Chennai"]
[Date "2022.08.07"]
[Round "9.60"]
[White "Joel O. Ebiekuta"]
[Black "Badene, Habtamu Bayu"]
[Result "0-1"]
[WhiteElo "1848"]
[BlackElo "2011"]
[Annotator "NA"]
[PlyCount "104"]
[EventDate "2022.??.??"]
[TimeControl "60"]

1. e4 {[%emt 0:00:13]} e5 {[%emt 0:00:03]} 2. Nf3 {[%emt 0:00:12]} Nc6 {
[%emt 0:00:05]} 3. Bb5 {[%emt 0:00:14]} Nf6 {[%emt 0:00:28]} 4. O-O {[%emt 0:
00:00]} Be7 {[%emt 0:00:27]} 5. Re1 {[%emt 0:04:27]} d6 {[%emt 0:00:31]} 6. h3
{[%emt 0:00:09]} a6 {[%emt 0:00:09]} 7. Bf1 {[%emt 0:01:10]} O-O {[%emt 0:00:
00]} 8. c3 {[%emt 0:00:26]} d5 {[%emt 0:00:51]} 9. exd5 {[%emt 0:01:11]} Qxd5 {
[%emt 0:00:36]} 10. c4 {[%emt 0:02:52]} Qd6 {[%emt 0:01:46]} 11. Nc3 {[%emt 0:
00:00]} Bf5 {[%emt 0:00:38]} 12. a3 {[%emt 0:01:11]} Rfe8 {[%emt 0:00:34]} 13.
b4 {[%emt 0:01:29]} e4 {[%emt 0:02:55]} 14. c5 {[%emt 0:02:13]} Qd7 {[%emt 0:
00:00]} 15. Nh2 {[%emt 0:04:28]} Rad8 {[%emt 0:00:27]} 16. Qb3 {[%emt 0:00:31]}
Nd4 {[%emt 0:00:57]} 17. Qb2 {[%emt 0:05:07]} Bf8 {[%emt 0:02:26]} 18. Re3 {
[%emt 0:12:19]} Bg6 {[%emt 0:04:25]} 19. Bc4 {[%emt 0:06:20]} Nf5 {[%emt 0:00:
00]} 20. Re1 {[%emt 0:05:39]} Nh4 {[%emt 0:02:57]} 21. Re3 {[%emt 0:02:37]} Qd4
{[%emt 0:16:43]} 22. Bf1 {[%emt 0:04:05]} Nf5 {[%emt 0:03:03]} 23. Re2 {
[%emt 0:04:00]} Ng3 {[%emt 0:05:12]} 24. Re3 {[%emt 0:02:04]} Nxf1 {[%emt 0:00:
00]} 25. Nxf1 {[%emt 0:00:30]} Nh5 {[%emt 0:01:21]} 26. Ne2 {[%emt 0:01:35]}
Qxb2 {[%emt 0:05:03]} 27. Bxb2 {[%emt 0:00:11]} f5 {[%emt 0:00:29]} 28. g3 {
[%emt 0:00:15]} Be7 {[%emt 0:06:31]} 29. Rc3 {[%emt 0:06:34]} Nf6 {[%emt 0:00:
00]} 30. Nf4 {[%emt 0:01:29]} Nd5 {[%emt 0:03:07]} 31. Nxd5 {[%emt 0:00:54]}
Rxd5 {[%emt 0:00:07]} 32. Rc2 {[%emt 0:02:21]} Red8 {[%emt 0:00:18]} 33. Bc3 {
[%emt 0:00:38]} Kf7 {[%emt 0:05:47]} 34. Ne3 {[%emt 0:02:10]} Rd3 {[%emt 0:00:
00]} 35. Nc4 {[%emt 0:01:04]} Bf6 {[%emt 0:01:02]} 36. Re1 {[%emt 0:00:56]} Bh5
{[%emt 0:05:22]} 37. Re3 {[%emt 0:04:40]} Bf3 {[%emt 0:01:46]} 38. Rxd3 {
[%emt 0:03:41]} Rxd3 {[%emt 0:00:44]} 39. Bxf6 {[%emt 0:00:21]} Kxf6 {[%emt 0:
00:00]} 40. Rc3 {[%emt 0:00:15]} Rd8 {[%emt 0:01:30]} 41. Kf1 {[%emt 0:32:14]}
g5 {[%emt 0:31:06]} 42. Ke1 {[%emt 0:01:23]} f4 {[%emt 0:02:34]} 43. Kf1 {
[%emt 0:01:39]} Kf5 {[%emt 0:03:12]} 44. Rc2 {[%emt 0:01:40]} h5 {[%emt 0:00:
00]} 45. Rc3 {[%emt 0:00:52]} e3 {[%emt 0:01:50]} 46. fxe3 {[%emt 0:03:15]}
fxg3 {[%emt 0:00:28]} 47. d4 {[%emt 0:05:34]} h4 {[%emt 0:00:56]} 48. Ne5 {
[%emt 0:00:44]} Ke4 {[%emt 0:04:10]} 49. Nc4 {[%emt 0:02:17]} g4 {[%emt 0:00:
00]} 50. hxg4 {[%emt 0:01:08]} Bxg4 {[%emt 0:00:51]} 51. Nd2+ {[%emt 0:00:09]}
Kd5 {[%emt 0:00:37]} 52. e4+ {[%emt 0:02:07]} Kxd4 {[%emt 0:00:25]} 0-1

[Event "44th Chess Olympiad Open 2022"]
[Site "Chennai"]
[Date "2022.08.07"]
[Round "9.61"]
[White "Fellman, Mike"]
[Black "Jamal, Hamid Harmon Gulamo"]
[Result "1-0"]
[WhiteElo "2107"]
[BlackElo "1617"]
[Annotator "NA RC"]
[PlyCount "99"]
[EventDate "2022.??.??"]
[TimeControl "60"]

1. d4 {[%emt 0:00:02]} Nf6 {[%emt 0:00:04]} 2. c4 {[%emt 0:00:06]} g6 {[%emt 0:
00:00]} 3. f3 {[%emt 0:00:05]} d6 {[%emt 0:01:10]} 4. e4 {[%emt 0:00:11]} e5 {
[%emt 0:01:04]} 5. d5 {[%emt 0:01:22]} Nfd7 {[%emt 0:03:32]} 6. h4 {[%emt 0:00:
00]} a5 {[%emt 0:01:24]} 7. Be3 {[%emt 0:02:54]} Nc5 {[%emt 0:00:15]} 8. h5 {
[%emt 0:00:47]} Be7 {[%emt 0:00:57]} 9. Qd2 {[%emt 0:00:53]} Bh4+ {[%emt 0:00:
00]} 10. Kd1 {[%emt 0:00:23]} Bf6 {[%emt 0:12:50]} 11. Nc3 {[%emt 0:00:57]} g5
{[%emt 0:02:49]} 12. g4 {[%emt 0:00:46]} h6 {[%emt 0:01:23]} 13. Nh3 {[%emt 0:
00:00]} Nbd7 {[%emt 0:03:35]} 14. Be2 {[%emt 0:00:18]} Be7 {[%emt 0:00:51]} 15.
Ke1 {[%emt 0:00:41]} f6 {[%emt 0:00:41]} 16. Kf1 {[%emt 0:00:32]} Kf7 {[%emt 0:
00:00]} 17. Kg2 {[%emt 0:00:08]} Nb6 {[%emt 0:03:04]} 18. b3 {[%emt 0:01:03]}
Bd7 {[%emt 0:01:19]} 19. Nf2 {[%emt 0:00:49]} Qc8 {[%emt 0:00:33]} 20. Rab1 {
[%emt 0:01:56]} Rd8 {[%emt 0:00:55]} 21. Rhc1 {[%emt 0:00:57]} Be8 {[%emt 0:00:
00]} 22. Bd1 {[%emt 0:01:11]} Bd7 {[%emt 0:00:35]} 23. Ne2 {[%emt 0:01:15]} Be8
{[%emt 0:00:48]} 24. Ng3 {[%emt 0:05:58]} Bd7 {[%emt 0:01:31]} 25. a3 {[%emt 0:
00:00]} Qb8 {[%emt 0:05:15]} 26. b4 {[%emt 0:02:25]} axb4 {[%emt 0:00:12]} 27.
axb4 {[%emt 0:00:09]} Nca4 {[%emt 0:01:00]} 28. c5 {[%emt 0:04:38]} Nc8 {
[%emt 0:02:13]} 29. Ra1 {[%emt 0:01:41]} dxc5 {[%emt 0:02:19]} 30. bxc5 {
[%emt 0:00:23]} b5 {[%emt 0:00:28]} 31. Nd3 {[%emt 0:07:35]} Bf8 {[%emt 0:00:
00]} 32. Rcb1 {[%emt 0:02:20]} Qa7 {[%emt 0:05:15]} 33. Bxa4 {[%emt 0:02:09]}
bxa4 {[%emt 0:00:21]} 34. c6 {[%emt 0:00:32]} Nb6 {[%emt 0:00:11]} 35. cxd7 {
[%emt 0:01:58]} Nc4 {[%emt 0:00:43]} 36. Bxa7 {[%emt 0:00:21]} Nxd2 {[%emt 0:
00:00]} 37. Rb7 {[%emt 0:03:29]} a3 {[%emt 0:01:16]} 38. Rxc7 {[%emt 0:01:33]}
Nb3 {[%emt 0:00:40]} 39. Ra2 {[%emt 0:00:23]} Bd6 {[%emt 0:00:33]} 40. Rc6 {
[%emt 0:11:16]} Rxa7 {[%emt 0:02:37]} 41. Rxd6 {[%emt 0:30:07]} Nd4 {[%emt 0:
00:00]} 42. Nc5 {[%emt 0:03:19]} Nb5 {[%emt 0:01:05]} 43. Rc6 {[%emt 0:02:06]}
Nc3 {[%emt 0:00:47]} 44. Ra1 {[%emt 0:00:17]} a2 {[%emt 0:00:53]} 45. Rc8 {
[%emt 0:00:55]} Nd1 {[%emt 0:05:10]} 46. Rxd8 {[%emt 0:02:45]} Ne3+ {[%emt 0:
00:00]} 47. Kf2 {[%emt 0:00:16]} Nc2 {[%emt 0:00:41]} 48. Rf8+ {[%emt 0:00:16]}
Kxf8 {[%emt 0:00:34]} 49. d8=Q+ {[%emt 0:00:13]} Kf7 {[%emt 0:01:07]} 50. Ne6 {
[%emt 0:00:08]} 1-0

[Event "44th Chess Olympiad Open 2022"]
[Site "Chennai"]
[Date "2022.08.07"]
[Round "9.61"]
[White "Gerena Rivas, Eliam"]
[Black "Paiva, Donaldo"]
[Result "1/2-1/2"]
[WhiteElo "2102"]
[BlackElo "2191"]
[Annotator "RC"]
[PlyCount "79"]
[EventDate "2022.??.??"]
[TimeControl "60"]

1. e4 {[%emt 0:00:03]} c5 {[%emt 0:00:05]} 2. Nc3 {[%emt 0:00:29]} d6 {[%emt 0:
00:00]} 3. f4 {[%emt 0:01:13]} g6 {[%emt 0:00:07]} 4. Nf3 {[%emt 0:00:47]} Bg7
{[%emt 0:00:06]} 5. Bc4 {[%emt 0:00:57]} Nc6 {[%emt 0:00:23]} 6. d3 {[%emt 0:
00:00]} e6 {[%emt 0:00:07]} 7. O-O {[%emt 0:03:11]} Nge7 {[%emt 0:00:12]} 8.
Qe1 {[%emt 0:04:48]} O-O {[%emt 0:01:37]} 9. Qh4 {[%emt 0:01:25]} Nd4 {[%emt 0:
00:00]} 10. f5 {[%emt 0:18:58]} gxf5 {[%emt 0:01:17]} 11. Bh6 {[%emt 0:10:32]}
Nxf3+ {[%emt 0:00:56]} 12. Rxf3 {[%emt 0:01:03]} Ng6 {[%emt 0:00:06]} 13. Qh5 {
[%emt 0:03:30]} Qh4 {[%emt 0:02:29]} 14. Qxh4 {[%emt 0:02:14]} Nxh4 {[%emt 0:
00:00]} 15. Rg3 {[%emt 0:00:09]} Ng6 {[%emt 0:00:05]} 16. Bxg7 {[%emt 0:00:29]}
Kxg7 {[%emt 0:00:08]} 17. exf5 {[%emt 0:00:20]} exf5 {[%emt 0:00:05]} 18. Nd5 {
[%emt 0:06:50]} Bd7 {[%emt 0:02:03]} 19. Nf4 {[%emt 0:08:01]} Kh8 {[%emt 0:00:
00]} 20. Rf1 {[%emt 0:02:10]} Nxf4 {[%emt 0:02:46]} 21. Rxf4 {[%emt 0:00:07]}
Be6 {[%emt 0:00:04]} 22. Bb3 {[%emt 0:01:55]} Rg8 {[%emt 0:04:36]} 23. Rxg8+ {
[%emt 0:04:35]} Rxg8 {[%emt 0:00:22]} 24. Kf2 {[%emt 0:01:07]} b5 {[%emt 0:00:
00]} 25. c3 {[%emt 0:05:06]} Rg6 {[%emt 0:14:03]} 26. d4 {[%emt 0:03:00]} Kg7 {
[%emt 0:01:26]} 27. g3 {[%emt 0:02:32]} Rg4 {[%emt 0:05:25]} 28. d5 {[%emt 0:
00:00]} Bc8 {[%emt 0:03:19]} 29. Bd1 {[%emt 0:00:35]} Rxf4+ {[%emt 0:03:11]}
30. gxf4 {[%emt 0:00:09]} Bb7 {[%emt 0:00:12]} 31. Bf3 {[%emt 0:00:14]} Kf6 {
[%emt 0:00:11]} 32. b4 {[%emt 0:00:32]} cxb4 {[%emt 0:03:12]} 33. cxb4 {
[%emt 0:00:08]} Bc8 {[%emt 0:00:03]} 34. Kg3 {[%emt 0:00:39]} h6 {[%emt 0:00:
00]} 35. Kf2 {[%emt 0:01:20]} Bd7 {[%emt 0:00:08]} 36. Kg3 {[%emt 0:00:33]} Be8
{[%emt 0:00:17]} 37. Kh4 {[%emt 0:00:49]} Bd7 {[%emt 0:00:07]} 38. Kg3 {
[%emt 0:00:14]} Be8 {[%emt 0:00:17]} 39. Kh4 {[%emt 0:00:14]} Bd7 {[%emt 0:00:
00]} 40. Kg3 {[%emt 0:00:07]} 1/2-1/2

[Event "44th Chess Olympiad Open 2022"]
[Site "Chennai"]
[Date "2022.08.07"]
[Round "9.61"]
[White "Vasco Mateus Felizardo Viagei"]
[Black "Rodriguez Santiago, Jaime"]
[Result "0-1"]
[WhiteElo "1852"]
[BlackElo "2067"]
[Annotator "NA RC"]
[PlyCount "116"]
[EventDate "2022.??.??"]
[TimeControl "60"]

1. e4 {[%emt 0:00:04]} c6 {[%emt 0:00:07]} 2. d4 {[%emt 0:00:16]} d5 {[%emt 0:
00:00]} 3. Nc3 {[%emt 0:00:16]} dxe4 {[%emt 0:00:05]} 4. Nxe4 {[%emt 0:00:23]}
Nf6 {[%emt 0:00:04]} 5. Ng3 {[%emt 0:02:11]} h5 {[%emt 0:00:04]} 6. h4 {
[%emt 0:03:08]} c5 {[%emt 0:00:04]} 7. Nf3 {[%emt 0:00:23]} Nc6 {[%emt 0:00:09]
} 8. Be3 {[%emt 0:01:02]} cxd4 {[%emt 0:00:46]} 9. Nxd4 {[%emt 0:00:12]} Bg4 {
[%emt 0:00:39]} 10. f3 {[%emt 0:00:49]} Qa5+ {[%emt 0:01:02]} 11. Kf2 {[%emt 0:
00:00]} O-O-O {[%emt 0:10:49]} 12. Qd3 {[%emt 0:12:42]} Bd7 {[%emt 0:13:09]}
13. Nxc6 {[%emt 0:01:20]} Bxc6 {[%emt 0:00:42]} 14. Qf5+ {[%emt 0:00:04]} Qxf5
{[%emt 0:00:41]} 15. Nxf5 {[%emt 0:00:06]} e5 {[%emt 0:02:13]} 16. Bc4 {
[%emt 0:03:25]} g6 {[%emt 0:01:58]} 17. Bg5 {[%emt 0:00:38]} gxf5 {[%emt 0:00:
00]} 18. Bxf6 {[%emt 0:00:33]} Bc5+ {[%emt 0:02:41]} 19. Kf1 {[%emt 0:05:39]}
Rd4 {[%emt 0:06:30]} 20. Bxh8 {[%emt 0:02:03]} Rxc4 {[%emt 0:00:04]} 21. c3 {
[%emt 0:00:24]} Bd6 {[%emt 0:00:51]} 22. Re1 {[%emt 0:04:53]} e4 {[%emt 0:00:
00]} 23. Kf2 {[%emt 0:03:59]} Bc5+ {[%emt 0:02:38]} 24. Kg3 {[%emt 0:00:23]}
f4+ {[%emt 0:00:56]} 25. Kxf4 {[%emt 0:06:44]} exf3+ {[%emt 0:01:15]} 26. Bd4 {
[%emt 0:00:06]} fxg2 {[%emt 0:00:22]} 27. Rhg1 {[%emt 0:00:32]} Bxd4 {[%emt 0:
00:00]} 28. cxd4 {[%emt 0:00:06]} Rxd4+ {[%emt 0:00:45]} 29. Kg5 {[%emt 0:00:
00]} Rd5+ {[%emt 0:01:48]} 30. Kf6 {[%emt 0:03:45]} Rd6+ {[%emt 0:01:09]} 31.
Kxf7 {[%emt 0:01:55]} Rd4 {[%emt 0:00:11]} 32. Rc1 {[%emt 0:04:09]} Kb8 {
[%emt 0:01:15]} 33. Rxc6 {[%emt 0:02:40]} bxc6 {[%emt 0:00:04]} 34. Rxg2 {
[%emt 0:00:05]} Rxh4 {[%emt 0:00:04]} 35. Rc2 {[%emt 0:00:30]} Kb7 {[%emt 0:00:
00]} 36. Kg6 {[%emt 0:00:35]} Rh1 {[%emt 0:00:53]} 37. Kg5 {[%emt 0:01:19]} Kb6
{[%emt 0:00:37]} 38. Rc3 {[%emt 0:01:59]} Rh2 {[%emt 0:02:21]} 39. Rb3+ {
[%emt 0:00:21]} Kc7 {[%emt 0:00:18]} 40. Kf4 {[%emt 0:01:15]} c5 {[%emt 0:00:
00]} 41. Kg3 {[%emt 0:33:27]} Rh1 {[%emt 0:30:58]} 42. Ra3 {[%emt 0:00:54]} Kb6
{[%emt 0:01:02]} 43. Rb3+ {[%emt 0:00:05]} Kc6 {[%emt 0:00:26]} 44. Ra3 {
[%emt 0:00:22]} Rb1 {[%emt 0:01:12]} 45. b3 {[%emt 0:00:21]} Kb6 {[%emt 0:00:
00]} 46. Ra4 {[%emt 0:00:13]} a5 {[%emt 0:01:57]} 47. Kh4 {[%emt 0:00:40]} Rh1+
{[%emt 0:00:40]} 48. Kg3 {[%emt 0:00:03]} Kb5 {[%emt 0:01:54]} 49. Kg2 {
[%emt 0:00:51]} Rd1 {[%emt 0:00:49]} 50. Kh3 {[%emt 0:05:53]} Rd4 {[%emt 0:00:
00]} 51. Ra3 {[%emt 0:00:37]} Rg4 {[%emt 0:03:13]} 52. Kh2 {[%emt 0:00:10]} a4
{[%emt 0:03:13]} 53. Kh3 {[%emt 0:00:31]} Rd4 {[%emt 0:00:53]} 54. Kg3 {
[%emt 0:01:27]} Rd3+ {[%emt 0:01:04]} 55. Kh4 {[%emt 0:02:16]} axb3 {[%emt 0:
00:00]} 56. axb3 {[%emt 0:00:46]} Kb4 {[%emt 0:00:03]} 57. Ra8 {[%emt 0:01:58]}
Kxb3 {[%emt 0:00:30]} 58. Kxh5 {[%emt 0:00:53]} c4 {[%emt 0:00:25]} 0-1